bitfinex/quotes_BTCUSD_20250420
["timestamp","ask_amount","ask_price","bid_price","bid_amount"]
[1745112620947,0.59422531,85130.0,85129.0,0.00044521]
[1745112621152,0.59522531,85130.0,85129.0,0.00044521]
[1745112627198,0.71467322,85130.0,85129.0,0.00044521]
[1745112627462,0.80857322,85130.0,85129.0,0.00044521]
[1745112630985,0.80757322,85130.0,85129.0,0.00044521]
[1745112631184,0.80857322,85130.0,85129.0,0.00044521]
[1745112632240,0.65536827,85126.0,85125.0,0.0008428]
[1745112632583,0.82782763,85126.0,85125.0,0.0008428]
[1745112635669,0.94727554,85126.0,85125.0,0.0008428]
[1745112637715,0.01454085,85121.0,85118.0,0.0008428]
[1745112637902,0.13398876,85120.0,85118.0,0.0008428]
[1745112638269,0.18700021,85120.0,85118.0,0.0008428]
[1745112641071,0.59203899,85120.0,85118.0,0.0008428]
[1745112646221,0.64013899,85120.0,85118.0,0.0008428]
[1745112649420,0.74412606,85120.0,85118.0,0.0008428]
[1745112649616,0.64013899,85120.0,85118.0,0.0008428]
[1745112650712,0.76363899,85120.0,85118.0,0.0008428]
[1745112650910,0.64113899,85120.0,85118.0,0.0008428]
[1745112652739,0.65370199,85119.0,85118.0,0.0008428]
[1745112652946,0.94554329,85119.0,85118.0,0.0008428]
[1745112654106,1.04204329,85119.0,85118.0,1e-08]
[1745112654303,0.97259538,85119.0,85118.0,1e-08]
[1745112654554,0.97359538,85119.0,85118.0,1e-08]
[1745112658741,0.64636115,85108.0,85104.0,0.0008428]
[1745112658898,0.76580906,85108.0,85107.0,0.000888]
[1745112659097,0.81865787,85108.0,85107.0,0.000888]
[1745112660848,0.82757775,85108.0,85107.0,0.000888]
[1745112661944,0.94702566,85108.0,85107.0,0.000888]
[1745112662382,0.82757775,85108.0,85107.0,0.000888]
[1745112664940,0.81865787,85108.0,85107.0,0.000888]
[1745112665143,0.81865787,85108.0,85107.0,0.001888]
[1745112666395,0.58366234,85108.0,85107.0,0.001888]
[1745112667285,0.58366234,85108.0,85107.0,0.049688]
[1745112667286,0.56912149,85108.0,85107.0,0.049688]
[1745112674067,0.56912149,85108.0,85107.0,0.048688]
[1745112674245,0.56912149,85108.0,85107.0,0.049688]
[1745112683285,0.56912149,85108.0,85107.0,0.001888]
[1745112686131,0.56912149,85108.0,85107.0,0.000888]
[1745112686359,0.56912149,85108.0,85107.0,0.001888]
[1745112690904,0.56912149,85108.0,85107.0,0.000888]
[1745112691287,0.56912149,85108.0,85107.0,0.001888]
[1745112696098,0.56912149,85108.0,85107.0,0.000888]
[1745112736101,0.56912149,85108.0,85107.0,0.341888]
[1745112736102,0.44967358,85108.0,85107.0,0.341888]
[1745112736338,0.05284881,85108.0,85107.0,0.387088]
[1745112736774,0.39682477,85118.0,85117.0,0.57497068]
[1745112736921,0.51627268,85118.0,85117.0,0.57497068]
[1745112737126,0.56030261,85118.0,85117.0,0.57497068]
[1745112738251,0.4408547,85118.0,85117.0,0.62317068]
[1745112740052,0.04402993,85118.0,85117.0,0.62317068]
[1745112740440,0.39682477,85137.0,85136.0,0.57491824]
[1745112740677,0.56036268,85137.0,85136.0,0.57491824]
[1745112742237,0.56036268,85137.0,85136.0,0.57591824]
[1745112743029,0.56036268,85137.0,85136.0,0.58769414]
[1745112744018,0.56036268,85137.0,85136.0,0.58669414]
[1745112757371,0.56036268,85137.0,85136.0,0.3517759]
[1745112757730,0.01174674,85130.0,85121.0,0.12992]
[1745112757993,0.01174756,85124.0,85121.0,0.14182433]
[1745112758187,0.01174715,85127.0,85121.0,0.14182433]
[1745112758188,0.11944791,85123.0,85121.0,0.14182433]
[1745112758486,0.16384942,85123.0,85122.0,0.34]
[1745112758693,0.21364942,85123.0,85122.0,0.34]
[1745112759094,0.44860354,85123.0,85121.0,0.01190433]
[1745112759451,0.01174812,85120.0,85115.0,0.34]
[1745112759653,0.01174853,85117.0,85113.0,0.24672818]
[1745112759994,0.11944791,85116.0,85113.0,0.24672818]
[1745112760130,0.16381584,85116.0,85113.0,0.24672818]
[1745112760337,0.16381584,85116.0,85113.0,0.2349791]
[1745112760536,0.16381584,85116.0,85111.0,0.35179456]
[1745112760537,0.01174881,85115.0,85111.0,0.3400452]
[1745112760793,0.11944791,85114.0,85112.0,0.23498449]
[1745112761513,0.04436793,85113.0,85112.0,0.57498449]
[1745112761736,0.16381584,85113.0,85112.0,0.57498449]
[1745112762947,0.16381584,85113.0,85112.0,0.34]
[1745112764364,0.57271584,85113.0,85112.0,0.34]
[1745112773305,0.47111952,85113.0,85112.0,0.34]
[1745112781822,0.44575668,85113.0,85112.0,0.57498449]
[1745112782170,0.44575668,85113.0,85112.0,0.57598449]
[1745112782804,0.44575668,85113.0,85112.0,0.62358449]
[1745112787684,0.03685668,85113.0,85112.0,0.62358449]
[1745112788045,0.01174563,85138.0,85134.0,0.23492214]
[1745112788221,0.56523831,85137.0,85134.0,0.23492214]
[1745112789076,0.56523831,85137.0,85135.0,0.23491906]
[1745112789341,0.56523831,85137.0,85134.0,0.23492214]
[1745112789777,0.57698408,85137.0,85134.0,0.23492214]
[1745112793038,0.01174605,85135.0,85132.0,0.23492779]
[1745112793253,0.11944791,85134.0,85132.0,0.23492779]
[1745112793417,0.15632439,85134.0,85132.0,0.23492779]
[1745112807710,0.15632439,85134.0,85130.0,0.58668024]
[1745112807916,0.15632439,85134.0,85132.0,0.34]
[1745112809318,0.15632439,85134.0,85132.0,0.57492736]
[1745112821428,0.03687648,85134.0,85132.0,0.57492736]
[1745112821858,0.4089,85137.0,85136.0,0.23491824]
[1745112822063,0.52834791,85137.0,85136.0,0.57491824]
[1745112826960,0.4089,85137.0,85136.0,0.57491824]
[1745112829804,0.4458429,85137.0,85136.0,0.57491824]
[1745112837609,0.4458429,85137.0,85136.0,0.57591824]
[1745112838472,0.0176229,85137.0,85136.0,0.57591824]
[1745112838608,0.03375232,85137.0,85136.0,0.57591824]
[1745112838804,0.0004216,85143.0,85142.0,0.57490169]
[1745112839033,0.0004216,85143.0,85142.0,0.62310169]
[1745112839234,0.0004216,85143.0,85142.0,0.62410169]
[1745112858047,0.0004216,85143.0,85142.0,0.62310169]
[1745112858213,0.0004216,85143.0,85142.0,0.57490169]
[1745112858626,0.0004216,85143.0,85142.0,0.70478169]
[1745112866746,0.0004216,85143.0,85142.0,0.75548169]
[1745112866981,0.0004215,85160.0,85154.0,0.34]
[1745112867316,0.00055709,85160.0,85159.0,0.5748548]
[1745112869077,0.00055709,85160.0,85159.0,0.58688438]
[1745112883510,0.00055709,85160.0,85159.0,0.71672438]
[1745112913589,0.00055709,85160.0,85159.0,0.74886391]
[1745112926257,0.0004215,85165.0,85164.0,0.57484101]
[1745112926435,0.0004215,85165.0,85164.0,0.60698054]
[1745112926672,0.02420163,85165.0,85164.0,0.60698054]
[1745112926874,0.0004215,85165.0,85164.0,0.60698054]
[1745112927157,0.4089,85170.0,85168.0,0.57482998]
[1745112931339,0.0004214,85172.0,85168.0,0.57482998]
[1745112935570,0.0514214,85169.0,85168.0,0.34]
[1745112936015,0.089987,85169.0,85168.0,0.34]
[1745112936364,0.0514214,85169.0,85168.0,0.34]
[1745112937335,0.4603214,85169.0,85168.0,0.34]
[1745112937550,0.49888063,85169.0,85168.0,0.34]
[1745112943972,0.49788063,85169.0,85168.0,0.34]
[1745112953234,0.45188063,85169.0,85168.0,0.34]
[1745112954890,0.04298063,85169.0,85168.0,0.34]
[1745112955277,0.0044214,85169.0,85168.0,0.34]
[1745112969997,0.0044214,85169.0,85168.0,0.37212225]
[1745112970206,0.0004214,85172.0,85171.0,0.57482171]
[1745112970411,0.0004798,85172.0,85171.0,0.57482171]
[1745112975709,0.16962771,85172.0,85171.0,0.57482171]
[1745112976158,0.17062771,85172.0,85171.0,0.34]
[1745112976375,0.20928312,85172.0,85171.0,0.34]
[1745112976574,0.20928312,85172.0,85170.0,0.23482272]
[1745112976773,0.08983521,85172.0,85171.0,0.34]
[1745112976927,0.20928312,85172.0,85171.0,0.34]
[1745112979805,0.61818312,85172.0,85171.0,0.34]
[1745112980223,0.24656279,85171.0,85166.0,0.57483301]
[1745112980423,0.13118913,85170.0,85166.0,0.23483408]
[1745112980561,0.13118913,85170.0,85168.0,0.34]
[1745112980764,0.03865541,85169.0,85168.0,0.34]
[1745112980966,0.15810332,85169.0,85168.0,0.34]
[1745112981166,0.15910332,85169.0,85168.0,0.34]
[1745112982298,0.15910332,85169.0,85167.0,0.57483118]
[1745112982513,0.11944791,85168.0,85167.0,0.57483118]
[1745112982916,0.15910332,85168.0,85167.0,0.57483118]
[1745112984137,0.56800332,85168.0,85167.0,0.57483118]
[1745112991143,0.56700332,85168.0,85167.0,0.57483118]
[1745112991382,0.56800332,85168.0,85167.0,0.57483118]
[1745112992031,0.56700332,85168.0,85167.0,0.57483118]
[1745113012413,0.56700332,85168.0,85165.0,0.35174191]
[1745113012658,0.56700332,85168.0,85165.0,0.58657756]
[1745113012948,0.80183469,85168.0,85165.0,0.34]
[1745113013163,0.01174218,85163.0,85159.0,0.14182958]
[1745113013365,0.11944791,85162.0,85160.0,0.34]
[1745113013493,0.4089,85161.0,85160.0,0.34]
[1745113013698,0.52834791,85161.0,85160.0,0.34]
[1745113014113,0.61320787,85161.0,85160.0,0.34]
[1745113014327,0.23485204,85160.0,85159.0,0.01202958]
[1745113014499,0.01174301,85157.0,85154.0,0.01174342]
[1745113014832,0.23485976,85158.0,85155.0,0.35174329]
[1745113014833,0.15800787,85156.0,85155.0,0.35174329]
[1745113015238,0.15800787,85156.0,85155.0,0.58660747]
[1745113015441,0.15800787,85156.0,85155.0,0.5985361]
[1745113019390,0.56690787,85156.0,85155.0,0.5985361]
[1745113028275,0.56690787,85156.0,85155.0,0.35192863]
[1745113028569,0.56690787,85156.0,85155.0,0.01192863]
[1745113028770,0.56690787,85156.0,85154.0,0.23486603]
[1745113029210,0.56690787,85156.0,85154.0,0.24642159]
[1745113030657,0.56690787,85156.0,85154.0,0.01155556]
[1745113030866,0.56690787,85156.0,85153.0,0.23487036]
[1745113031468,0.56690787,85156.0,85154.0,0.23486685]
[1745113048683,0.52834791,85156.0,85155.0,0.34]
[1745113048831,0.4089,85156.0,85155.0,0.34]
[1745113049038,0.44736971,85156.0,85155.0,0.3881]
[1745113050843,0.44736971,85156.0,85155.0,0.3871]
[1745113051314,0.44736971,85156.0,85155.0,0.3881]
[1745113054637,0.03846971,85156.0,85155.0,0.3881]
[1745113054999,0.4089,85170.0,85167.0,0.35174163]
[1745113055203,0.0486,85168.0,85163.0,0.01174218]
[1745113055401,0.36602502,85167.0,85163.0,0.23484377]
[1745113055614,0.23483825,85165.0,85164.0,0.34]
[1745113055812,0.35428616,85165.0,85164.0,0.34]
[1745113056039,0.39280375,85165.0,85164.0,0.34]
[1745113056239,0.01174246,85161.0,85157.0,0.34]
[1745113056448,0.11944791,85160.0,85159.0,0.5748548]
[1745113056608,0.11944791,85160.0,85159.0,0.34]
[1745113056967,0.1579655,85160.0,85159.0,0.34]
[1745113057545,0.1579655,85160.0,85157.0,0.34]
[1745113057878,0.1697081,85160.0,85157.0,0.34]
[1745113058314,0.1697081,85160.0,85157.0,0.5748586]
[1745113058510,0.1579655,85160.0,85157.0,0.5748586]
[1745113058890,0.0479,85159.0,85155.0,0.34]
[1745113059075,0.13119078,85158.0,85155.0,0.57486418]
[1745113059273,0.11944791,85158.0,85155.0,0.57486418]
[1745113059503,0.03851759,85157.0,85155.0,0.57486418]
[1745113059731,0.11944791,85156.0,85155.0,0.57486418]
[1745113060346,0.5668655,85156.0,85155.0,0.57486418]
[1745113063351,0.5668655,85156.0,85155.0,0.34]
[1745113065981,0.5668655,85156.0,85153.0,0.01169422]
[1745113066189,0.86147172,85156.0,85153.0,0.01169422]
[1745113066391,0.4089,85155.0,85153.0,0.34]
[1745113066602,0.3543165,85154.0,85153.0,0.34]
[1745113066799,0.15794447,85154.0,85153.0,0.34]
[1745113067932,0.15794447,85154.0,85151.0,0.35174384]
[1745113068150,0.15794447,85154.0,85153.0,0.01179762]
[1745113068354,0.15794447,85154.0,85151.0,0.58661855]
[1745113068637,0.16968789,85154.0,85151.0,0.34]
[1745113070527,0.16968789,85154.0,85151.0,0.35196565]
[1745113071158,0.16968789,85154.0,85151.0,0.36370949]
[1745113071675,0.15794447,85154.0,85152.0,0.34]
[1745113072026,0.15794447,85154.0,85152.0,0.57487224]
[1745113072212,0.4089,85153.0,85152.0,0.57487224]
[1745113072425,0.52834791,85153.0,85152.0,0.57487224]
[1745113072858,0.56684447,85153.0,85151.0,0.59858423]
[1745113073033,0.11944791,85152.0,85151.0,0.59858423]
[1745113073471,0.15794447,85152.0,85151.0,0.59858423]
[1745113078054,0.56684447,85152.0,85151.0,0.59858423]
[1745113080823,0.44739656,85152.0,85151.0,0.59958423]
[1745113083958,0.03849656,85152.0,85151.0,0.59958423]
[1745113084377,0.01174136,85169.0,85165.0,0.24657984]
[1745113084579,0.11944791,85168.0,85165.0,0.24657984]
[1745113084801,0.15792792,85168.0,85165.0,0.24657984]
[1745113087098,0.15792792,85168.0,85165.0,0.23483793]
[1745113089859,0.4089,85167.0,85165.0,0.23483793]
[1745113090085,0.11944791,85166.0,85165.0,0.23483793]
[1745113090295,0.15792792,85166.0,85165.0,0.23483793]
[1745113093193,0.15792792,85166.0,85164.0,0.23483956]
[1745113093834,0.15792792,85166.0,85163.0,0.23484351]
[1745113094051,0.15792792,85166.0,85163.0,0.24658569]
[1745113094451,0.15792792,85166.0,85163.0,0.23484351]
[1745113094665,0.16966969,85166.0,85163.0,0.23484351]
[1745113095706,0.4089,85165.0,85163.0,0.23484351]
[1745113096071,0.15796593,85164.0,85163.0,0.23484351]
[1745113101021,0.15796593,85164.0,85161.0,0.35174246]
[1745113101233,0.15796593,85164.0,85161.0,0.58659013]
[1745113101490,0.4089,85163.0,85161.0,0.58659013]
[1745113101689,0.11944791,85162.0,85161.0,0.58659013]
[1745113102043,0.15796144,85162.0,85161.0,0.58659013]
[1745113102477,0.01174274,85159.0,85154.0,0.23486819]
[1745113102732,0.35430546,85158.0,85152.0,0.34]
[1745113102984,0.13119078,85158.0,85155.0,0.34]
[1745113103180,0.16970431,85158.0,85155.0,0.34]
[1745113103383,0.16970431,85158.0,85155.0,0.35174329]
[1745113104730,0.16970431,85158.0,85155.0,0.34]
[1745113106759,0.16970431,85158.0,85155.0,0.57486431]
[1745113106975,0.16970431,85158.0,85155.0,0.5866076]
[1745113107359,0.4089,85157.0,85155.0,0.5866076]
[1745113107567,0.11944791,85156.0,85155.0,0.5866076]
[1745113108007,0.15796144,85156.0,85155.0,0.5866076]
[1745113113303,0.56686144,85156.0,85155.0,0.5866076]
[1745113113978,0.57860459,85156.0,85153.0,0.35174356]
[1745113114191,0.56686144,85156.0,85153.0,0.5866129]
[1745113116236,0.24661451,85154.0,85151.0,0.01196565]
[1745113116445,0.11944791,85153.0,85151.0,0.01196565]
[1745113116632,0.16968494,85153.0,85149.0,0.01174411]
[1745113117253,0.16968494,85153.0,85149.0,0.35174411]
[1745113118072,0.16968494,85153.0,85149.0,0.58662475]
[1745113118861,0.15794138,85153.0,85151.0,0.23487686]
[1745113119061,0.15794138,85153.0,85152.0,0.34]
[1745113121311,0.15794138,85153.0,85151.0,0.01158605]
[1745113121827,0.15794138,85153.0,85150.0,0.01174398]
[1745113123408,0.16968494,85153.0,85149.0,0.58662473]
[1745113123772,0.16968494,85153.0,85149.0,0.59836137]
[1745113124309,0.40455785,85153.0,85149.0,0.36348075]
[1745113124988,0.4089,85152.0,85149.0,0.36348075]
[1745113125209,0.4089,85152.0,85151.0,0.34]
[1745113125350,0.52834791,85152.0,85151.0,0.34]
[1745113125550,0.56684853,85152.0,85151.0,0.34]
[1745113126538,0.56684853,85152.0,85149.0,0.59836052]
[1745113126739,0.11944791,85151.0,85149.0,0.59836052]
[1745113127400,0.03850062,85150.0,85149.0,0.59836052]
[1745113127613,0.15794853,85150.0,85149.0,0.59836052]
[1745113130897,0.56684853,85150.0,85149.0,0.59836052]
[1745113132426,0.56684853,85150.0,85149.0,0.36348075]
[1745113134919,0.66334853,85150.0,85149.0,0.01173664]
[1745113135141,0.66434853,85150.0,85149.0,0.01173664]
[1745113135396,0.283721,85135.0,85134.0,0.01248874]
[1745113135644,0.01174453,85146.0,85134.0,0.01248874]
[1745113135645,0.01174425,85148.0,85143.0,0.24664335]
[1745113135866,0.01174384,85151.0,85142.0,0.01174508]
[1745113135867,0.0594437,85152.0,85147.0,0.24663007]
[1745113136099,0.11944791,85151.0,85147.0,0.24663007]
[1745113136340,0.11944791,85151.0,85139.0,0.01174549]
[1745113136341,0.01174453,85146.0,85141.0,0.24664799]
[1745113136578,0.11944791,85145.0,85141.0,0.24664799]
[1745113136800,0.11944791,85145.0,85143.0,0.23489786]
[1745113138776,0.11944791,85145.0,85142.0,0.01174508]
[1745113139752,0.4089,85144.0,85142.0,0.01174508]
[1745113139969,0.11944791,85143.0,85141.0,0.24664799]
[1745113142739,0.11944791,85143.0,85142.0,0.34]
[1745113142931,0.4089,85144.0,85143.0,0.57489893]
[1745113143484,0.4089,85144.0,85143.0,0.34]
[1745113143485,0.52834791,85144.0,85143.0,0.34]
[1745113143697,0.23492021,85136.0,85134.0,0.01248874]
[1745113143895,0.11944791,85135.0,85134.0,0.01248874]
[1745113144903,0.1578242,85135.0,85134.0,0.01248874]
[1745113148195,0.1578242,85135.0,85134.0,0.35248874]
[1745113148420,0.5667242,85135.0,85134.0,0.35248874]
[1745113148669,0.52834791,85135.0,85134.0,0.35248874]
[1745113148894,0.56661432,85135.0,85134.0,0.35248874]
[1745113150736,0.44716641,85135.0,85134.0,0.40048874]
[1745113152244,0.56661432,85135.0,85134.0,0.01248874]
[1745113152483,0.44716641,85135.0,85134.0,0.5874125]
[1745113152715,0.44716641,85135.0,85134.0,0.5884125]
[1745113152955,0.03826641,85135.0,85134.0,0.6344125]
[1745113153382,5.837e-05,85146.0,85145.0,0.57489341]
[1745113153806,0.03830356,85146.0,85145.0,0.57489341]
[1745113154017,5.837e-05,85146.0,85145.0,0.57489341]
[1745113154284,0.03830356,85146.0,85145.0,0.57489341]
[1745113154529,5.837e-05,85146.0,85145.0,0.57489341]
[1745113154719,0.03830356,85146.0,85145.0,0.57489341]
[1745113157848,0.15775147,85146.0,85145.0,0.57489341]
[1745113158115,0.15775147,85146.0,85145.0,0.34]
[1745113158348,0.39264212,85146.0,85145.0,0.34]
[1745113158813,0.15775147,85146.0,85145.0,0.34]
[1745113159039,0.03830356,85146.0,85145.0,0.57489341]
[1745113159434,0.03830356,85146.0,85145.0,0.56989341]
[1745113165059,0.03830356,85146.0,85140.0,0.01174536]
[1745113165060,0.01174522,85141.0,85136.0,0.35174591]
[1745113165261,0.01174508,85142.0,85139.0,0.34]
[1745113165262,0.11944791,85140.0,85139.0,0.34]
[1745113165462,0.15775744,85140.0,85139.0,0.34]
[1745113169038,0.56665744,85140.0,85139.0,0.34]
[1745113171218,0.56665744,85140.0,85136.0,0.24666402]
[1745113171219,0.24666393,85137.0,85132.0,0.0008426]
[1745113171438,0.11944791,85136.0,85134.0,0.0008426]
[1745113171633,0.39266256,85136.0,85134.0,0.01285807]
[1745113173603,0.39266256,85136.0,85134.0,0.0008426]
[1745113173604,0.15774222,85136.0,85134.0,0.0008426]
[1745113173800,0.15774222,85136.0,85135.0,0.234921]
[1745113174790,0.56664222,85136.0,85135.0,0.234921]
[1745113174979,0.56664222,85136.0,85135.0,0.574921]
[1745113175420,0.44719431,85136.0,85135.0,0.574921]
[1745113175631,0.44719431,85136.0,85135.0,0.575921]
[1745113180842,0.03829431,85136.0,85135.0,0.575921]
[1745113181048,0.4089,85147.0,85145.0,0.23489341]
[1745113181287,0.4089,85147.0,85145.0,0.57489341]
[1745113190595,0.16710628,85146.0,85144.0,0.23489597]
[1745113190820,0.11944791,85145.0,85144.0,0.23489597]
[1745113191059,0.15777806,85145.0,85144.0,0.23489597]
[1745113191708,0.03833015,85145.0,85144.0,0.57489597]
[1745113192157,5.837e-05,85146.0,85145.0,0.34]
[1745113193821,0.11950628,85146.0,85145.0,0.34]
[1745113194245,5.837e-05,85146.0,85145.0,0.34]
[1745113201187,0.2349036,85142.0,85134.0,0.01254141]
[1745113201426,0.16914791,85141.0,85138.0,0.01174563]
[1745113201663,0.20743931,85141.0,85140.0,0.57490721]
[1745113203772,0.0382914,85141.0,85140.0,0.57490721]
[1745113204270,5.837e-05,85146.0,85145.0,0.57489341]
[1745113204490,0.11950628,85146.0,85145.0,0.57489341]
[1745113204716,5.837e-05,85146.0,85145.0,0.57489341]
[1745113211663,0.11950628,85146.0,85145.0,0.57489341]
[1745113211914,0.11950628,85146.0,85145.0,0.34]
[1745113212139,0.15780526,85146.0,85145.0,0.34]
[1745113215964,0.56670526,85146.0,85145.0,0.34]
[1745113217543,0.44725735,85146.0,85145.0,0.34]
[1745113224019,0.56670526,85146.0,85145.0,0.34]
[1745113228553,0.56670526,85146.0,85137.0,0.01174577]
[1745113228554,0.01174494,85143.0,85137.0,0.24665903]
[1745113228766,0.11944791,85142.0,85140.0,0.01174536]
[1745113228981,0.15772785,85142.0,85140.0,0.01174536]
[1745113229430,0.15772785,85142.0,85141.0,0.34]
[1745113233444,0.56662785,85142.0,85141.0,0.34]
[1745113241444,0.44717994,85142.0,85141.0,0.341]
[1745113242070,0.44717994,85142.0,85141.0,0.3876]
[1745113245304,0.03827994,85142.0,85141.0,0.3876]
[1745113245518,5.837e-05,85146.0,85145.0,0.34]
[1745113245986,5.837e-05,85146.0,85145.0,0.341]
[1745113249044,5.837e-05,85146.0,85145.0,0.34]
[1745113265921,0.4089,85158.0,85156.0,0.23486307]
[1745113266159,0.01216179,85176.0,85167.0,0.57483274]
[1745113266160,0.4089,85168.0,85167.0,0.57483274]
[1745113266356,0.57474791,85168.0,85167.0,0.34]
[1745113266569,0.57574791,85168.0,85167.0,0.34]
[1745113268105,0.52834791,85168.0,85167.0,0.34]
[1745113268320,0.4089,85168.0,85167.0,0.34]
[1745113271696,0.40895841,85169.0,85168.0,0.57482998]
[1745113272102,0.40895841,85169.0,85168.0,0.5865938]
[1745113279787,0.45459308,85169.0,85168.0,0.5865938]
[1745113280408,0.04569308,85169.0,85168.0,0.5865938]
[1745113280715,5.841e-05,85169.0,85168.0,0.5865938]
[1745113289010,5.841e-05,85169.0,85168.0,0.58525313]
[1745113293317,0.16560632,85169.0,85168.0,0.2465938]
[1745113298040,0.57450632,85169.0,85168.0,0.2465938]
[1745113298542,0.62023761,85169.0,85168.0,0.2465938]
[1745113299987,0.62123761,85169.0,85168.0,0.5865938]
[1745113300229,0.62123761,85169.0,85168.0,0.35176382]
[1745113300498,0.0453,85158.0,85156.0,0.01174315]
[1745113300721,0.16444791,85157.0,85154.0,0.01174342]
[1745113300938,0.21015769,85157.0,85154.0,0.35174342]
[1745113301374,0.21015769,85157.0,85154.0,0.58661035]
[1745113301597,0.21015769,85157.0,85154.0,0.5981421]
[1745113301785,0.4089,85156.0,85154.0,0.2581421]
[1745113302044,0.45454122,85156.0,85155.0,0.34]
[1745113302231,0.57398913,85156.0,85155.0,0.34]
[1745113302996,0.57398913,85156.0,85154.0,0.35153175]
[1745113303201,0.11944791,85155.0,85154.0,0.35153175]
[1745113303627,0.16508913,85155.0,85154.0,0.35153175]
[1745113306807,0.57398913,85155.0,85154.0,0.35153175]
[1745113309542,0.45454122,85155.0,85154.0,0.35153175]
[1745113310194,0.57398913,85155.0,85154.0,0.35153175]
[1745113310669,0.45454122,85155.0,85154.0,0.35153175]
[1745113312767,0.04564122,85155.0,85154.0,0.35153175]
[1745113312994,0.4089,85164.0,85161.0,0.01174246]
[1745113313248,0.52834791,85164.0,85161.0,0.01174246]
[1745113314299,0.52834791,85164.0,85163.0,0.34]
[1745113321845,0.01174232,85162.0,85158.0,0.35174287]
[1745113322084,0.11944791,85161.0,85159.0,0.01174274]
[1745113322663,0.11944791,85161.0,85160.0,0.34]
[1745113324356,0.52834791,85161.0,85159.0,0.01174274]
[1745113324544,0.52834791,85161.0,85160.0,0.34]
[1745113328115,0.52834791,85161.0,85158.0,0.24659788]
[1745113329278,0.52834791,85161.0,85160.0,0.34]
[1745113330142,0.0498,85156.0,85154.0,0.01153175]
[1745113330346,0.01174342,85154.0,85150.0,0.01174398]
[1745113330549,0.11944791,85153.0,85150.0,0.24662205]
[1745113330721,0.11944791,85153.0,85151.0,0.34]
[1745113330944,0.11944791,85153.0,85152.0,0.5748741]
[1745113333020,0.11944791,85153.0,85152.0,0.34]
[1745113336185,0.52834791,85153.0,85152.0,0.34]
[1745113336421,0.0493,85151.0,85150.0,0.01203252]
[1745113336607,0.01174494,85143.0,85139.0,0.35174549]
[1745113336808,0.11944791,85142.0,85141.0,0.34]
[1745113337033,0.16498692,85142.0,85141.0,0.34]
[1745113337921,0.16498692,85142.0,85141.0,0.00013559]
[1745113338144,0.21408692,85142.0,85141.0,0.00013559]
[1745113339905,0.66848692,85142.0,85141.0,0.00013559]
[1745113340573,0.66948692,85142.0,85141.0,0.00013559]
[1745113343136,0.62298692,85142.0,85141.0,0.00013559]
[1745113345873,0.62398692,85142.0,85141.0,0.00013559]
[1745113351061,0.62298692,85142.0,85141.0,0.00013559]
[1745113351297,0.62398692,85142.0,85141.0,0.00013559]
[1745113353945,0.62298692,85142.0,85141.0,0.00013559]
[1745113355970,0.67258692,85142.0,85141.0,0.00013559]
[1745113356459,0.75709017,85142.0,85141.0,0.00013559]
[1745113356893,0.0977,85136.0,85134.0,0.0008426]
[1745113357102,0.52821232,85135.0,85134.0,0.00090097]
[1745113357315,0.57354411,85135.0,85134.0,0.00090097]
[1745113357533,0.57454411,85135.0,85134.0,0.00090097]
[1745113360090,0.57354411,85135.0,85134.0,0.00090097]
[1745113361689,0.57354411,85135.0,85134.0,0.23582473]
[1745113361905,0.4540962,85135.0,85134.0,0.57682473]
[1745113362123,0.40876441,85135.0,85134.0,0.57682473]
[1745113362345,0.44655509,85135.0,85134.0,0.57682473]
[1745113368270,0.566003,85135.0,85134.0,0.57582473]
[1745113369640,0.52821232,85135.0,85134.0,0.57582473]
[1745113369836,0.56603875,85135.0,85134.0,0.57582473]
[1745113377368,0.44659084,85135.0,85134.0,0.57582473]
[1745113377578,0.44659084,85135.0,85134.0,0.62602473]
[1745113381144,0.56603875,85135.0,85134.0,0.34090097]
[1745113381581,0.44659084,85135.0,85134.0,0.34090097]
[1745113381806,0.44659084,85135.0,85134.0,0.39110097]
[1745113382461,0.44659084,85135.0,85134.0,0.39010097]
[1745113382675,0.44659084,85135.0,85134.0,0.47482097]
[1745113390034,0.44659084,85135.0,85134.0,0.47382097]
[1745113399068,0.44659084,85135.0,85134.0,0.47482097]
[1745113399299,0.44659084,85135.0,85134.0,0.52192097]
[1745113400431,0.44659084,85135.0,85134.0,0.47482097]
[1745113400625,0.44659084,85135.0,85134.0,0.47382097]
[1745113400889,0.44659084,85135.0,85134.0,0.34090097]
[1745113402202,0.44659084,85135.0,85134.0,0.34190097]
[1745113403608,0.03782643,85135.0,85134.0,0.34190097]
[1745113403996,0.40876441,85151.0,85149.0,0.23488238]
[1745113404173,0.11944791,85150.0,85149.0,0.23488238]
[1745113404375,0.15734037,85150.0,85149.0,0.23488238]
[1745113404792,0.03789246,85150.0,85149.0,0.57488238]
[1745113405225,0.40876441,85151.0,85150.0,0.34]
[1745113408575,0.52821232,85151.0,85150.0,0.34]
[1745113408997,0.56562585,85151.0,85150.0,0.34]
[1745113417775,0.56562585,85151.0,85149.0,0.57488238]
[1745113417982,0.44617794,85151.0,85150.0,0.34]
[1745113418195,0.56562585,85151.0,85150.0,0.34]
[1745113422113,0.61252585,85151.0,85150.0,0.34]
[1745113422926,0.61252585,85151.0,85149.0,0.23488179]
[1745113423134,0.11944791,85150.0,85149.0,0.23488179]
[1745113423593,0.15687068,85150.0,85149.0,0.23488179]
[1745113423795,0.15787068,85150.0,85149.0,0.23488179]
[1745113424522,0.15787068,85150.0,85148.0,0.35174425]
[1745113425186,0.15687068,85150.0,85148.0,0.35174425]
[1745113426246,0.16861466,85150.0,85143.0,0.14402494]
[1745113426452,0.16861466,85150.0,85144.0,0.3517448]
[1745113426453,0.01174411,85149.0,85144.0,0.3517448]
[1745113426669,0.13119216,85148.0,85144.0,0.34]
[1745113427094,0.44618718,85147.0,85144.0,0.34]
[1745113427303,0.11944791,85146.0,85144.0,0.34]
[1745113427552,0.11944791,85146.0,85143.0,0.13228]
[1745113427553,0.0956,85145.0,85143.0,0.13228]
[1745113427754,0.11944791,85144.0,85143.0,0.13228]
[1745113427878,0.11944791,85144.0,85142.0,0.24664463]
[1745113428471,0.0373565,85143.0,85142.0,0.24664463]
[1745113428683,0.15680441,85143.0,85142.0,0.24664463]
[1745113432762,0.15680441,85143.0,85141.0,0.35174522]
[1745113432970,0.52821232,85142.0,85141.0,0.35174522]
[1745113433600,0.56556882,85142.0,85141.0,0.35174522]
[1745113437669,0.01174549,85139.0,85134.0,0.34090097]
[1745113437852,0.234921,85135.0,85134.0,0.34090097]
[1745113438057,0.35436891,85135.0,85134.0,0.34090097]
[1745113438259,0.11944791,85135.0,85134.0,0.34090097]
[1745113438463,0.15678551,85135.0,85134.0,0.34090097]
[1745113438797,0.15678551,85135.0,85134.0,0.00090097]